[Event "Titled Tuesday Blitz February 15 Late 2022"]
[White "Weetik, Vjacheslav"]
[Black "Karttunen, Mika"]
[WhiteFideId "4153472"]
[BlackFideId "502081"]
[WhiteElo "2469"]
[BlackElo "2343"]
[Result "1-0"]
[Round "10"]
[TimeControl "180+1"]
[Date "2022.02.15"]
[WhiteClock "0:00:07"]
[BlackClock "0:00:10"]

1. d4 {[%clk 0:02:59]}  Nf6 {[%clk 0:02:59]} 2. Bf4 {[%clk 0:02:59]}  c5 {[%clk 0:02:58]} 3. e3 {[%clk 0:03:00]}  d5 {[%clk 0:02:57]} 4. c3 {[%clk 0:03:00]}  Nc6 {[%clk 0:02:57]} 5. Nd2 {[%clk 0:03:00]}  g6 {[%clk 0:02:56]} 6. Ngf3 {[%clk 0:02:52]}  Bg7 {[%clk 0:02:56]} 7. h3 {[%clk 0:02:52]}  O-O {[%clk 0:02:55]} 8. Be2 {[%clk 0:02:52]}  Nd7 {[%clk 0:02:56]} 9. O-O {[%clk 0:02:45]}  e5 {[%clk 0:02:49]} 10. dxe5 {[%clk 0:02:44]}  Ndxe5 {[%clk 0:02:49]} 11. Nxe5 {[%clk 0:02:45]}  Nxe5 {[%clk 0:02:49]} 12. Nf3 {[%clk 0:02:45]}  Nc6 {[%clk 0:02:34]} 13. Qb3 {[%clk 0:02:38]}  Na5 {[%clk 0:02:22]} 14. Qa3 {[%clk 0:02:32]}  Qb6 {[%clk 0:02:13]} 15. Rad1 {[%clk 0:02:24]}  Be6 {[%clk 0:02:12]} 16. Be5 {[%clk 0:01:58]}  f6 {[%clk 0:01:57]} 17. Bg3 {[%clk 0:01:54]}  Rad8 {[%clk 0:01:52]} 18. Rd2 {[%clk 0:01:45]}  Rfe8 {[%clk 0:01:51]} 19. Rfd1 {[%clk 0:01:43]}  Bf8 {[%clk 0:01:51]} 20. Qa4 {[%clk 0:01:40]}  a6 {[%clk 0:01:36]} 21. Qf4 {[%clk 0:00:51]}  Bf7 {[%clk 0:01:31]} 22. Qc7 {[%clk 0:00:50]}  Qxc7 {[%clk 0:00:34]} 23. Bxc7 {[%clk 0:00:50]}  Nc6 {[%clk 0:00:35]} 24. Bxd8 {[%clk 0:00:50]}  Rxd8 {[%clk 0:00:35]} 25. c4 {[%clk 0:00:44]}  d4 {[%clk 0:00:24]} 26. exd4 {[%clk 0:00:40]}  Bh6 {[%clk 0:00:24]} 27. dxc5 {[%clk 0:00:34]}  Bxd2 {[%clk 0:00:23]} 28. Rxd2 {[%clk 0:00:35]}  Rxd2 {[%clk 0:00:20]} 29. Nxd2 {[%clk 0:00:35]}  Nd4 {[%clk 0:00:20]} 30. Bd3 {[%clk 0:00:32]}  a5 {[%clk 0:00:21]} 31. Ne4 {[%clk 0:00:28]}  Ne6 {[%clk 0:00:10]} 32. Nxf6+ {[%clk 0:00:24]}  Kg7 {[%clk 0:00:11]} 33. Ne4 {[%clk 0:00:16]}  Be8 {[%clk 0:00:10]} 34. a3 {[%clk 0:00:14]}  a4 {[%clk 0:00:10]} 35. Bc2 {[%clk 0:00:13]}  Bc6 {[%clk 0:00:10]} 36. Kf1 {[%clk 0:00:11]}  Bxe4 {[%clk 0:00:10]} 37. Bxe4 {[%clk 0:00:11]}  Nxc5 {[%clk 0:00:11]} 38. Bc2 {[%clk 0:00:12]}  Kf6 {[%clk 0:00:11]} 39. Ke2 {[%clk 0:00:12]}  Ke5 {[%clk 0:00:11]} 40. Ke3 {[%clk 0:00:13]}  b6 {[%clk 0:00:09]} 41. f4+ {[%clk 0:00:13]}  Kf6 {[%clk 0:00:10]} 42. g3 {[%clk 0:00:10]}  h6 {[%clk 0:00:10]} 43. h4 {[%clk 0:00:07]}  g5 {[%clk 0:00:08]} 44. fxg5+ {[%clk 0:00:08]}  hxg5 {[%clk 0:00:09]} 45. h5 {[%clk 0:00:08]}  Ne6 {[%clk 0:00:07]} 46. h6 {[%clk 0:00:06]}  g4 {[%clk 0:00:07]} 47. h7 {[%clk 0:00:06]}  Kg7 {[%clk 0:00:07]} 48. Bf5 {[%clk 0:00:06]}  Nc5 {[%clk 0:00:06]} 49. Kd4 {[%clk 0:00:05]}  Nb3+ {[%clk 0:00:06]} 50. Kc3 {[%clk 0:00:05]}  Nc1 {[%clk 0:00:06]} 51. Kb4 {[%clk 0:00:04]}  Ne2 {[%clk 0:00:06]} 52. Kxa4 {[%clk 0:00:03]}  Nxg3 {[%clk 0:00:07]} 53. Bxg4 {[%clk 0:00:04]}  Kxh7 {[%clk 0:00:07]} 54. Kb5 {[%clk 0:00:04]}  Kg6 {[%clk 0:00:08]} 55. Kxb6 {[%clk 0:00:05]}  Kf6 {[%clk 0:00:08]} 56. c5 {[%clk 0:00:05]}  Ne4 {[%clk 0:00:09]} 57. c6 {[%clk 0:00:06]}  Ke5 {[%clk 0:00:09]} 58. c7 {[%clk 0:00:06]}  Nd6 {[%clk 0:00:09]} 59. c8=Q {[%clk 0:00:06]}  Nxc8+ {[%clk 0:00:10]} 60. Bxc8 {[%clk 0:00:07]} 1-0


[Site "https://www.chess.com"]

[Event "Titled Tuesday Blitz February 15 Late 2022"]
[White "Wieczorek, Oskar"]
[Black "Bok, Benjamin"]
[WhiteFideId "1133950"]
[BlackFideId "1017063"]
[WhiteElo "2319"]
[BlackElo "2658"]
[Result "0-1"]
[Round "10"]
[TimeControl "180+1"]
[Date "2022.02.15"]
[WhiteClock "0:00:02"]
[BlackClock "0:00:10"]

1. e4 {[%clk 0:03:00]}  c5 {[%clk 0:02:59]} 2. Nf3 {[%clk 0:02:57]}  d6 {[%clk 0:02:59]} 3. d4 {[%clk 0:02:56]}  cxd4 {[%clk 0:03:00]} 4. Nxd4 {[%clk 0:02:56]}  Nf6 {[%clk 0:03:00]} 5. Nc3 {[%clk 0:02:56]}  a6 {[%clk 0:03:01]} 6. h4 {[%clk 0:02:57]}  e5 {[%clk 0:02:58]} 7. Nb3 {[%clk 0:02:56]}  Be7 {[%clk 0:02:49]} 8. Bg5 {[%clk 0:02:54]}  Be6 {[%clk 0:02:49]} 9. Bxf6 {[%clk 0:02:54]}  Bxf6 {[%clk 0:02:50]} 10. g3 {[%clk 0:02:54]}  Be7 {[%clk 0:02:51]} 11. Qd2 {[%clk 0:02:55]}  Nd7 {[%clk 0:02:50]} 12. O-O-O {[%clk 0:02:55]}  Qc7 {[%clk 0:02:48]} 13. f4 {[%clk 0:02:53]}  Nf6 {[%clk 0:02:48]} 14. Qe1 {[%clk 0:02:35]}  b5 {[%clk 0:02:35]} 15. Kb1 {[%clk 0:02:28]}  Rc8 {[%clk 0:02:33]} 16. Rh2 {[%clk 0:02:11]}  O-O {[%clk 0:01:45]} 17. f5 {[%clk 0:02:06]}  Bd7 {[%clk 0:01:44]} 18. a3 {[%clk 0:00:50]}  Qb7 {[%clk 0:01:34]} 19. g4 {[%clk 0:00:46]}  Nxg4 {[%clk 0:01:26]} 20. Rg2 {[%clk 0:00:38]}  Nf6 {[%clk 0:01:27]} 21. Qg3 {[%clk 0:00:33]}  g6 {[%clk 0:01:27]} 22. h5 {[%clk 0:00:20]}  Nxh5 {[%clk 0:01:14]} 23. Qf3 {[%clk 0:00:19]}  Nf4 {[%clk 0:01:11]} 24. Rg4 {[%clk 0:00:11]}  Bxf5 {[%clk 0:01:05]} 25. Rxf4 {[%clk 0:00:10]}  exf4 {[%clk 0:01:06]} 26. Nd5 {[%clk 0:00:07]}  Be6 {[%clk 0:01:02]} 27. Nxf4 {[%clk 0:00:07]}  Bg5 {[%clk 0:00:47]} 28. Nd5 {[%clk 0:00:07]}  Bxd5 {[%clk 0:00:37]} 29. Rxd5 {[%clk 0:00:08]}  Qe7 {[%clk 0:00:36]} 30. Bh3 {[%clk 0:00:07]}  Rc7 {[%clk 0:00:34]} 31. Qg3 {[%clk 0:00:07]}  Bf6 {[%clk 0:00:26]} 32. Qd3 {[%clk 0:00:06]}  Be5 {[%clk 0:00:25]} 33. c3 {[%clk 0:00:06]}  Re8 {[%clk 0:00:23]} 34. Nd2 {[%clk 0:00:04]}  Qh4 {[%clk 0:00:21]} 35. Ka2 {[%clk 0:00:03]}  Qg3 {[%clk 0:00:17]} 36. Qf1 {[%clk 0:00:02]}  Bf4 {[%clk 0:00:14]} 37. Nf3 {[%clk 0:00:01]}  Rxe4 {[%clk 0:00:12]} 38. Bg2 {[%clk 0:00:02]}  Re8 {[%clk 0:00:11]} 39. Qd3 {[%clk 0:00:02]}  Qxg2 {[%clk 0:00:10]} 0-1


[Site "https://www.chess.com"]

[Event "Titled Tuesday Blitz February 15 Late 2022"]
[White "Yedidia, Daniel"]
[Black "Mikhalsky, Vladimir"]
[WhiteFideId "30905907"]
[BlackFideId "14144352"]
[WhiteElo "2492"]
[BlackElo "2248"]
[Result "0-1"]
[Round "10"]
[TimeControl "180+1"]
[Date "2022.02.16"]
[WhiteClock "0:00:04"]
[BlackClock "0:00:16"]

1. d4 {[%clk 0:03:00]}  Nf6 {[%clk 0:02:59]} 2. c4 {[%clk 0:03:00]}  g6 {[%clk 0:02:59]} 3. Nc3 {[%clk 0:03:00]}  Bg7 {[%clk 0:02:59]} 4. e4 {[%clk 0:03:01]}  O-O {[%clk 0:03:00]} 5. Nf3 {[%clk 0:03:02]}  d6 {[%clk 0:03:00]} 6. Be2 {[%clk 0:03:02]}  e5 {[%clk 0:03:00]} 7. Be3 {[%clk 0:03:03]}  Ng4 {[%clk 0:02:58]} 8. Bg5 {[%clk 0:03:03]}  f6 {[%clk 0:02:58]} 9. Bh4 {[%clk 0:03:04]}  Nc6 {[%clk 0:02:58]} 10. O-O {[%clk 0:02:49]}  Qe8 {[%clk 0:02:52]} 11. h3 {[%clk 0:02:38]}  Nh6 {[%clk 0:02:51]} 12. dxe5 {[%clk 0:02:30]}  fxe5 {[%clk 0:02:40]} 13. Nd5 {[%clk 0:02:26]}  Qf7 {[%clk 0:02:22]} 14. b4 {[%clk 0:02:22]}  Nd4 {[%clk 0:02:17]} 15. Ng5 {[%clk 0:02:06]}  Qd7 {[%clk 0:02:15]} 16. Bg4 {[%clk 0:01:46]}  Nxg4 {[%clk 0:02:13]} 17. Qxg4 {[%clk 0:01:44]}  c6 {[%clk 0:01:57]} 18. Qxd7 {[%clk 0:01:34]}  Bxd7 {[%clk 0:01:56]} 19. Nc3 {[%clk 0:01:17]}  h6 {[%clk 0:01:56]} 20. Nf3 {[%clk 0:01:14]}  Rxf3 {[%clk 0:01:52]} 21. gxf3 {[%clk 0:01:15]}  Nxf3+ {[%clk 0:01:51]} 22. Kh1 {[%clk 0:01:14]}  Nxh4 {[%clk 0:01:51]} 23. Rfd1 {[%clk 0:01:14]}  Bf8 {[%clk 0:01:48]} 24. c5 {[%clk 0:01:14]}  Bxh3 {[%clk 0:01:34]} 25. cxd6 {[%clk 0:01:13]}  Rd8 {[%clk 0:01:33]} 26. b5 {[%clk 0:01:11]}  Rxd6 {[%clk 0:01:29]} 27. Rxd6 {[%clk 0:01:11]}  Bxd6 {[%clk 0:01:29]} 28. bxc6 {[%clk 0:01:11]}  bxc6 {[%clk 0:01:29]} 29. Kh2 {[%clk 0:01:05]}  Be6 {[%clk 0:01:24]} 30. Rd1 {[%clk 0:00:59]}  Nf3+ {[%clk 0:01:22]} 31. Kg3 {[%clk 0:00:57]}  Nd4 {[%clk 0:01:21]} 32. Rb1 {[%clk 0:00:57]}  Bc8 {[%clk 0:01:14]} 33. Nd1 {[%clk 0:00:50]}  g5 {[%clk 0:01:03]} 34. Ne3 {[%clk 0:00:49]}  h5 {[%clk 0:01:00]} 35. Nc4 {[%clk 0:00:45]}  Bc7 {[%clk 0:01:00]} 36. Kg2 {[%clk 0:00:40]}  h4 {[%clk 0:00:59]} 37. Rg1 {[%clk 0:00:25]}  Kg7 {[%clk 0:00:58]} 38. Ne3 {[%clk 0:00:21]}  Kf6 {[%clk 0:00:53]} 39. Rc1 {[%clk 0:00:22]}  g4 {[%clk 0:00:50]} 40. Kh2 {[%clk 0:00:17]}  Kg5 {[%clk 0:00:47]} 41. Rc5 {[%clk 0:00:17]}  Kf4 {[%clk 0:00:44]} 42. Ng2+ {[%clk 0:00:17]}  Kxe4 {[%clk 0:00:41]} 43. Nxh4 {[%clk 0:00:17]}  Bb6 {[%clk 0:00:37]} 44. Rc3 {[%clk 0:00:13]}  Kd5 {[%clk 0:00:35]} 45. Ng2 {[%clk 0:00:07]}  Nf3+ {[%clk 0:00:33]} 46. Kg3 {[%clk 0:00:08]}  Ng5 {[%clk 0:00:31]} 47. Ne3+ {[%clk 0:00:08]}  Bxe3 {[%clk 0:00:30]} 48. Rxe3 {[%clk 0:00:08]}  Ne4+ {[%clk 0:00:30]} 49. Kg2 {[%clk 0:00:08]}  Kd4 {[%clk 0:00:30]} 50. Ra3 {[%clk 0:00:09]}  a6 {[%clk 0:00:29]} 51. Ra4+ {[%clk 0:00:09]}  Kd5 {[%clk 0:00:28]} 52. Ra5+ {[%clk 0:00:10]}  c5 {[%clk 0:00:28]} 53. Ra3 {[%clk 0:00:08]}  c4 {[%clk 0:00:28]} 54. Kf1 {[%clk 0:00:08]}  c3 {[%clk 0:00:28]} 55. Ke2 {[%clk 0:00:09]}  Bd7 {[%clk 0:00:24]} 56. Kd1 {[%clk 0:00:07]}  Bb5 {[%clk 0:00:23]} 57. Kc2 {[%clk 0:00:07]}  Kd4 {[%clk 0:00:21]} 58. Rb3 {[%clk 0:00:07]}  Ba4 {[%clk 0:00:20]} 59. f3 {[%clk 0:00:05]}  gxf3 {[%clk 0:00:19]} 60. Kb1 {[%clk 0:00:02]}  Bxb3 {[%clk 0:00:19]} 61. a4 {[%clk 0:00:03]}  f2 {[%clk 0:00:17]} 62. Ka1 {[%clk 0:00:04]}  f1=Q# {[%clk 0:00:16]} 0-1


[Site "https://www.chess.com"]

[Event "Titled Tuesday Blitz February 15 Late 2022"]
[White "Antolak, Julia"]
[Black "Curtis, John"]
[WhiteFideId "1159569"]
[BlackFideId "3200256"]
[WhiteElo "2104"]
[BlackElo "2203"]
[Result "1-0"]
[Round "11"]
[TimeControl "180+1"]
[Date "2022.02.16"]
[WhiteClock "0:00:21"]
[BlackClock "0:00:01"]

1. e4 {[%clk 0:03:00]}  Nf6 {[%clk 0:03:00]} 2. e5 {[%clk 0:03:00]}  Nd5 {[%clk 0:03:00]} 3. Bc4 {[%clk 0:03:00]}  Nb6 {[%clk 0:02:58]} 4. Bb3 {[%clk 0:03:01]}  d5 {[%clk 0:02:57]} 5. exd6 {[%clk 0:03:00]}  exd6 {[%clk 0:02:57]} 6. d4 {[%clk 0:02:59]}  d5 {[%clk 0:02:57]} 7. c3 {[%clk 0:02:58]}  Bf5 {[%clk 0:02:54]} 8. Nf3 {[%clk 0:02:57]}  Bd6 {[%clk 0:02:50]} 9. O-O {[%clk 0:02:57]}  O-O {[%clk 0:02:49]} 10. Bg5 {[%clk 0:02:57]}  f6 {[%clk 0:02:33]} 11. Bh4 {[%clk 0:02:54]}  Nc6 {[%clk 0:02:27]} 12. Bg3 {[%clk 0:02:51]}  Na5 {[%clk 0:02:16]} 13. Bc2 {[%clk 0:02:40]}  Bxc2 {[%clk 0:02:16]} 14. Qxc2 {[%clk 0:02:40]}  Bxg3 {[%clk 0:02:07]} 15. hxg3 {[%clk 0:02:36]}  Qd7 {[%clk 0:01:55]} 16. Nbd2 {[%clk 0:02:35]}  Nac4 {[%clk 0:01:54]} 17. b3 {[%clk 0:02:33]}  Nxd2 {[%clk 0:01:53]} 18. Qxd2 {[%clk 0:02:33]}  Rae8 {[%clk 0:01:52]} 19. Rae1 {[%clk 0:02:33]}  Nc8 {[%clk 0:01:52]} 20. Qd3 {[%clk 0:02:29]}  Nd6 {[%clk 0:01:49]} 21. Nd2 {[%clk 0:02:28]}  c6 {[%clk 0:01:45]} 22. c4 {[%clk 0:02:24]}  Nf5 {[%clk 0:01:38]} 23. Nf3 {[%clk 0:02:18]}  h5 {[%clk 0:01:12]} 24. Rc1 {[%clk 0:02:07]}  Re4 {[%clk 0:01:07]} 25. Rfd1 {[%clk 0:02:00]}  Rfe8 {[%clk 0:00:54]} 26. cxd5 {[%clk 0:01:59]}  Qxd5 {[%clk 0:00:42]} 27. Rc5 {[%clk 0:01:59]}  Qd7 {[%clk 0:00:42]} 28. d5 {[%clk 0:01:54]}  cxd5 {[%clk 0:00:31]} 29. Rxd5 {[%clk 0:01:55]}  Qe6 {[%clk 0:00:29]} 30. Qb5 {[%clk 0:01:38]}  Nh6 {[%clk 0:00:20]} 31. Rxh5 {[%clk 0:01:30]}  Ng4 {[%clk 0:00:19]} 32. Qd5 {[%clk 0:01:16]}  Qxd5 {[%clk 0:00:18]} 33. Rhxd5 {[%clk 0:01:15]}  Re2 {[%clk 0:00:18]} 34. R5d2 {[%clk 0:01:13]}  Nxf2 {[%clk 0:00:17]} 35. Rxe2 {[%clk 0:01:04]}  Rxe2 {[%clk 0:00:17]} 36. Rd8+ {[%clk 0:01:05]}  Kh7 {[%clk 0:00:16]} 37. a4 {[%clk 0:01:03]}  Ne4 {[%clk 0:00:12]} 38. Rd7 {[%clk 0:01:01]}  b6 {[%clk 0:00:11]} 39. Rxa7 {[%clk 0:01:01]}  Nxg3 {[%clk 0:00:11]} 40. Rb7 {[%clk 0:01:00]}  Re6 {[%clk 0:00:09]} 41. Nd4 {[%clk 0:00:56]}  Rd6 {[%clk 0:00:07]} 42. Nb5 {[%clk 0:00:56]}  Rc6 {[%clk 0:00:06]} 43. Na7 {[%clk 0:00:53]}  Rc1+ {[%clk 0:00:04]} 44. Kf2 {[%clk 0:00:52]}  Ne4+ {[%clk 0:00:05]} 45. Ke3 {[%clk 0:00:51]}  Nc5 {[%clk 0:00:05]} 46. Rxb6 {[%clk 0:00:49]}  Rb1 {[%clk 0:00:05]} 47. b4 {[%clk 0:00:47]}  Nxa4 {[%clk 0:00:05]} 48. Rb7 {[%clk 0:00:47]}  Nc3 {[%clk 0:00:06]} 49. b5 {[%clk 0:00:44]}  Rb2 {[%clk 0:00:06]} 50. g3 {[%clk 0:00:40]}  Rb3 {[%clk 0:00:06]} 51. Kd4 {[%clk 0:00:35]}  Ne2+ {[%clk 0:00:06]} 52. Kc5 {[%clk 0:00:32]}  Rb1 {[%clk 0:00:07]} 53. Nc6 {[%clk 0:00:31]}  Nc3 {[%clk 0:00:07]} 54. b6 {[%clk 0:00:30]}  Na4+ {[%clk 0:00:06]} 55. Kd6 {[%clk 0:00:29]}  Nxb6 {[%clk 0:00:07]} 56. Ke6 {[%clk 0:00:25]}  Rg1 {[%clk 0:00:05]} 57. Rxb6 {[%clk 0:00:24]}  Rxg3 {[%clk 0:00:04]} 58. Nd4 {[%clk 0:00:23]}  Re3+ {[%clk 0:00:04]} 59. Kf5 {[%clk 0:00:23]}  Re5+ {[%clk 0:00:04]} 60. Kf4 {[%clk 0:00:23]}  Kg6 {[%clk 0:00:03]} 61. Nf3 {[%clk 0:00:22]}  Rc5 {[%clk 0:00:01]} 62. Rb7 {[%clk 0:00:22]}  Rc4+ {[%clk 0:00:01]} 63. Kg3 {[%clk 0:00:22]}  Rc3 {[%clk 0:00:01]} 64. Kf2 {[%clk 0:00:21]}  Kh6 {[%clk 0:00:01]} 65. Nh4 {[%clk 0:00:21]}  g5 {[%clk 0:00:01]} 66. Nf5+ {[%clk 0:00:21]}  Kg6 {[%clk 0:00:02]} 67. Ne3 {[%clk 0:00:21]}  f5 {[%clk 0:00:01]} 68. Rb6+ {[%clk 0:00:22]}  Kh5 {[%clk 0:00:02]} 69. Nxf5 {[%clk 0:00:22]}  Rc4 {[%clk 0:00:01]} 70. Rh6+ {[%clk 0:00:20]}  Kg4 {[%clk 0:00:01]} 71. Ne3+ {[%clk 0:00:21]}  Kf4 {[%clk 0:00:01]} 72. Nxc4 {[%clk 0:00:21]} 1-0


[Site "https://www.chess.com"]

[Event "Titled Tuesday Blitz February 15 Late 2022"]
[White "Arabidze, Meri"]
[Black "Vovk, Orest"]
[WhiteFideId "13604040"]
[BlackFideId "14113490"]
[WhiteElo "2329"]
[BlackElo "2203"]
[Result "1-0"]
[Round "11"]
[TimeControl "180+1"]
[Date "2022.02.15"]
[WhiteClock "0:00:12"]
[BlackClock "0:00:05"]

1. d4 {[%clk 0:03:00]}  e5 {[%clk 0:02:53]} 2. dxe5 {[%clk 0:03:00]}  Nc6 {[%clk 0:02:53]} 3. Nf3 {[%clk 0:02:59]}  Qe7 {[%clk 0:02:54]} 4. Nc3 {[%clk 0:02:43]}  Nxe5 {[%clk 0:02:53]} 5. Nxe5 {[%clk 0:02:41]}  Qxe5 {[%clk 0:02:52]} 6. g3 {[%clk 0:02:35]}  Bb4 {[%clk 0:02:51]} 7. Bd2 {[%clk 0:02:33]}  Nf6 {[%clk 0:02:45]} 8. Bg2 {[%clk 0:02:33]}  O-O {[%clk 0:02:44]} 9. O-O {[%clk 0:02:33]}  d6 {[%clk 0:02:39]} 10. a3 {[%clk 0:02:33]}  Ba5 {[%clk 0:02:29]} 11. b4 {[%clk 0:02:15]}  Bb6 {[%clk 0:02:28]} 12. Na4 {[%clk 0:02:15]}  Qh5 {[%clk 0:02:23]} 13. Nxb6 {[%clk 0:02:14]}  axb6 {[%clk 0:02:23]} 14. e3 {[%clk 0:02:01]}  Qxd1 {[%clk 0:02:17]} 15. Rfxd1 {[%clk 0:02:00]}  Bg4 {[%clk 0:02:17]} 16. Rdc1 {[%clk 0:01:56]}  c6 {[%clk 0:02:13]} 17. c4 {[%clk 0:01:56]}  Be6 {[%clk 0:02:10]} 18. Bc3 {[%clk 0:01:44]}  Ng4 {[%clk 0:02:02]} 19. Bd4 {[%clk 0:01:39]}  Ne5 {[%clk 0:01:57]} 20. Bxe5 {[%clk 0:01:13]}  dxe5 {[%clk 0:01:57]} 21. b5 {[%clk 0:01:13]}  cxb5 {[%clk 0:01:52]} 22. Bxb7 {[%clk 0:01:01]}  Ra7 {[%clk 0:01:47]} 23. Bd5 {[%clk 0:01:02]}  bxc4 {[%clk 0:01:43]} 24. Bxe6 {[%clk 0:01:01]}  fxe6 {[%clk 0:01:43]} 25. Rxc4 {[%clk 0:01:01]}  Rfa8 {[%clk 0:01:43]} 26. Rb1 {[%clk 0:00:57]}  Rxa3 {[%clk 0:01:37]} 27. Rxb6 {[%clk 0:00:56]}  R3a6 {[%clk 0:01:36]} 28. Rb7 {[%clk 0:00:43]}  R6a7 {[%clk 0:01:31]} 29. Rb5 {[%clk 0:00:40]}  Ra5 {[%clk 0:01:20]} 30. Rc8+ {[%clk 0:00:38]}  Rxc8 {[%clk 0:01:03]} 31. Rxa5 {[%clk 0:00:37]}  Kf7 {[%clk 0:01:03]} 32. Rxe5 {[%clk 0:00:37]}  Kf6 {[%clk 0:01:03]} 33. Ra5 {[%clk 0:00:37]}  h6 {[%clk 0:01:01]} 34. Kg2 {[%clk 0:00:37]}  Rc2 {[%clk 0:01:00]} 35. h4 {[%clk 0:00:37]}  Rb2 {[%clk 0:00:54]} 36. g4 {[%clk 0:00:37]}  Rb4 {[%clk 0:00:53]} 37. Kg3 {[%clk 0:00:37]}  Re4 {[%clk 0:00:51]} 38. Ra7 {[%clk 0:00:34]}  Rb4 {[%clk 0:00:49]} 39. h5 {[%clk 0:00:32]}  Rb3 {[%clk 0:00:46]} 40. Ra8 {[%clk 0:00:31]}  Kf7 {[%clk 0:00:44]} 41. Ra6 {[%clk 0:00:30]}  Kf6 {[%clk 0:00:43]} 42. Kf4 {[%clk 0:00:28]}  Rb4+ {[%clk 0:00:40]} 43. e4 {[%clk 0:00:28]}  Rb7 {[%clk 0:00:39]} 44. f3 {[%clk 0:00:25]}  Rc7 {[%clk 0:00:39]} 45. Kg3 {[%clk 0:00:22]}  Rc3 {[%clk 0:00:33]} 46. Ra8 {[%clk 0:00:21]}  Kf7 {[%clk 0:00:32]} 47. Kf4 {[%clk 0:00:21]}  Rc7 {[%clk 0:00:29]} 48. Ra6 {[%clk 0:00:20]}  Kf6 {[%clk 0:00:28]} 49. Ra8 {[%clk 0:00:20]}  Rb7 {[%clk 0:00:25]} 50. Rf8+ {[%clk 0:00:19]}  Ke7 {[%clk 0:00:25]} 51. Rc8 {[%clk 0:00:20]}  Kf6 {[%clk 0:00:24]} 52. Ra8 {[%clk 0:00:20]}  Rc7 {[%clk 0:00:23]} 53. Ra6 {[%clk 0:00:18]}  Rb7 {[%clk 0:00:23]} 54. e5+ {[%clk 0:00:17]}  Kf7 {[%clk 0:00:22]} 55. Kg3 {[%clk 0:00:17]}  Rc7 {[%clk 0:00:21]} 56. f4 {[%clk 0:00:17]}  Rb7 {[%clk 0:00:20]} 57. Kh4 {[%clk 0:00:17]}  Rb4 {[%clk 0:00:18]} 58. Ra7+ {[%clk 0:00:12]}  Kf8 {[%clk 0:00:18]} 59. Kg3 {[%clk 0:00:12]}  Rb3+ {[%clk 0:00:17]} 60. Kf2 {[%clk 0:00:12]}  Rb2+ {[%clk 0:00:18]} 61. Ke3 {[%clk 0:00:12]}  Rb3+ {[%clk 0:00:18]} 62. Ke2 {[%clk 0:00:13]}  Rb2+ {[%clk 0:00:18]} 63. Kd3 {[%clk 0:00:12]}  Rb3+ {[%clk 0:00:15]} 64. Kc4 {[%clk 0:00:10]}  Rg3 {[%clk 0:00:14]} 65. Kc5 {[%clk 0:00:10]}  Rxg4 {[%clk 0:00:12]} 66. Kd6 {[%clk 0:00:11]}  Rxf4 {[%clk 0:00:11]} 67. Kxe6 {[%clk 0:00:11]}  Kg8 {[%clk 0:00:11]} 68. Ke7 {[%clk 0:00:11]}  Rf5 {[%clk 0:00:11]} 69. e6 {[%clk 0:00:11]}  Rxh5 {[%clk 0:00:11]} 70. Ra8+ {[%clk 0:00:11]}  Kh7 {[%clk 0:00:11]} 71. Kd7 {[%clk 0:00:11]}  Rd5+ {[%clk 0:00:11]} 72. Kc6 {[%clk 0:00:11]}  Re5 {[%clk 0:00:09]} 73. Kd6 {[%clk 0:00:11]}  Re2 {[%clk 0:00:09]} 74. e7 {[%clk 0:00:11]}  Kg6 {[%clk 0:00:08]} 75. e8=Q+ {[%clk 0:00:11]}  Rxe8 {[%clk 0:00:07]} 76. Rxe8 {[%clk 0:00:12]}  Kf5 {[%clk 0:00:08]} 77. Rf8+ {[%clk 0:00:12]}  Kg4 {[%clk 0:00:08]} 78. Ke5 {[%clk 0:00:13]}  g5 {[%clk 0:00:08]} 79. Ke4 {[%clk 0:00:13]}  h5 {[%clk 0:00:07]} 80. Ke3 {[%clk 0:00:13]}  Kg3 {[%clk 0:00:06]} 81. Rf5 {[%clk 0:00:13]}  h4 {[%clk 0:00:03]} 82. Rxg5+ {[%clk 0:00:13]}  Kh2 {[%clk 0:00:04]} 83. Kf2 {[%clk 0:00:11]}  h3 {[%clk 0:00:05]} 84. Rh5 {[%clk 0:00:12]} 1-0


[Site "https://www.chess.com"]